Cogmind - Beta 16 @@@ ROGUE MODE // 2026.01.03 @ 02:11:12 Player: Selene Result: Destroyed by H-61 Shepherd with Heavy Assault Cannon Performance ------------- Evolutions (2) 1000 Regions Visited (7) 1400 Robots Destroyed (11) 55 Value Destroyed (143) 143 Prototype IDs (24) 480 Alien Tech Used (0) 0 Bonus (500) 500 TOTAL SCORE: 3578 Bonus ------- Pacifist 200 Aligned with FarCom 300 Cogmind --------- Core Integrity 0/550 Matter 130/300 Energy 100/100 System Corruption 0% Temperature Cool (1) Movement Flying (40) Location -8/Materials Parts ------- > --- POWER (1) -------- (None) > --- PROPULSION (4) --- Flight Unit > --- UTILITY (4) ------ Improved Signal Interpreter Salvage Targeting Computer > --- WEAPON (2) ------- (None) > --- INVENTORY (5) ---- Thief Drone Bay (3/3) Mini Grenade Launcher Axe Deploy-a-Sentry Peak State ------------ > --- POWER ------------ Light Deuterium Engine > --- PROPULSION ------- Airjet Flight Unit > --- UTILITY ---------- Improved Signal Interpreter Salvage Targeting Computer Reaction Control System > --- WEAPON ----------- Axe > --- INVENTORY -------- Improved Cooling System Thief Drone Bay Mini Grenade Launcher Deploy-a-Sentry [Rating: 20] Favorites ----------- Power Light Deuterium Engine Engine Light Deuterium Engine Propulsion Light Treads Treads Light Treads Leg Aluminum Leg Hover Unit Airjet Flight Unit Flight Unit Utility Reaction Control System Device Reaction Control System Processor Salvage Targeting Computer Protection Medium Armor Plating Weapon Grenade Launcher Ballistic Gun Light Assault Rifle Launcher Grenade Launcher Impact Weapon Heavy Hammer Slashing Weapon Axe Build | -11 -10 -10 -9 -9 -9 -8 -8 ------- Run | Yrd Mat Min Mat Min Exi Min Mat Slots Evolved 4 | . . . 2 . . . 2 Power . | . . . . . . . . Propulsion 2 | . . . 1 . . . 1 Utility 2 | . . . 1 . . . 1 Weapon . | . . . . . . . . Parts Attached 28 | . 3 3 6 9 . . 7 Power 2 | . . . . 1 . . 1 Engine 2 | . . . . 1 . . 1 Core . | . . . . . . . . Reactor . | . . . . . . . . Propulsion 10 | . 2 2 2 3 . . 1 Treads 3 | . . 2 1 . . . . Leg 4 | . 2 . 1 1 . . . Wheel . | . . . . . . . . Hover 1 | . . . . . . . 1 Flight 2 | . . . . 2 . . . Utility 9 | . . . 2 4 . . 3 Device 4 | . . . . 3 . . 1 Storage . | . . . . . . . . Processor 4 | . . . 2 . . . 2 Hackware . | . . . . . . . . Protection 1 | . . . . 1 . . . Artifact . | . . . . . . . . Weapon 7 | . 1 1 2 1 . . 2 Energy Gun . | . . . . . . . . Energy Cannon . | . . . . . . . . Ballistic Gun 3 | . 1 . . 1 . . 1 Ballistic Cannon . | . . . . . . . . Launcher 2 | . . 1 1 . . . . Special Weapon . | . . . . . . . . Impact Weapon 1 | . . . 1 . . . . Slashing Weapon 1 | . . . . . . . 1 Piercing Weapon . | . . . . . . . . Special Melee Weapon . | . . . . . . . . Unidentified Prototypes 1 | . . . . 1 . . . Parts Lost 5 | . . 1 1 . . . 3 Power . | . . . . . . . . Propulsion 2 | . . . . . . . 2 Utility 1 | . . . . . . . 1 Weapon 2 | . . 1 1 . . . . Highest Loss Streak 2 | . . 1 1 . . . 2 To Critical Strikes . | . . . . . . . . Average Backups 3 | 2 3 3 4 3 4 3 3 Power . | . . . . . . . . Propulsion . | 2 2 . . . 2 1 . Utility 1 | . . 2 2 2 1 1 1 Weapon 1 | . 1 1 1 1 1 1 1 Tool/Special . | . . . . . . . . Unused Backups 6 | . . . . 1 1 . 4 Power . | . . . . . . . . Propulsion . | . . . . . . . . Utility 4 | . . . . 1 . . 3 Weapon 2 | . . . . . 1 . 1 Tool/Special . | . . . . . . . . Average Slot Usage (%) 33 | . 32 38 36 34 . 7 35 Treads 12 | . . 26 4 . . . . Leg 1 | . 24 . 2 . . . . Hover 1 | . . . . . . . 5 Flight 2 | . . . . 1 . 7 10 Device 2 | . . . . 19 . . 5 Processor 3 | . . . 19 . . . 9 Ballistic Gun 1 | . 8 . . 9 . . . Launcher 5 | . . 11 . . . . . Impact Weapon 1 | . . . 9 . . . 1 Peak Build Rating 20 | . 3 3 9 10 1 3 20 Average Rating 4 | . 2 2 6 4 1 2 10 On Entrance . | . . . . . 1 1 1 Avg Prop Armor Cover (%) 24 | . 29 35 32 14 . . 7 Naked Turns 124 | . 1 1 . 3 110 9 . Heaviest Build 10 | . 2 3 7 10 . . 6 Greatest Support 10 | 3 3 3 3 10 3 8 8 Greatest Overweight (x) 3 | . . . 2 3 . . . Average Overweight (x) . | . . . . . . . . Largest Inventory Capacity 5 | 5 5 5 5 5 5 5 5 Average Capacity 5 | 5 5 5 5 5 5 5 5 Most Carried 5 | 5 5 5 5 5 5 5 5 Average Carried 3 | 3 3 3 4 3 4 4 4 Final Capacity 5 | 5 5 5 5 5 5 5 5 Final Carried 5 | 5 5 5 5 5 5 5 4 Class Distribution -------------------- 100% | Mutant Dominant Class ---------------- Mutant | -10/Materials Mutant | -10/Mines Mutant | -9/Materials Mutant | -9/Mines Mutant | -9/Exiles Mutant | -8/Mines Mutant | -8/Materials Resources | -11 -10 -10 -9 -9 -9 -8 -8 ----------- Run | Yrd Mat Min Mat Min Exi Min Mat Matter Collected 527 | 200 . 178 88 61 . . . Remotely . | . . . . . . . . Salvage Created 241 | . . 14 173 42 . . 12 Parts 12 | . . . 8 4 . . . Haulers Intercepted 1 | . . . 1 . . . . Recyclers Shooed . | . . . . . . . . Parts Field Recycled . | . . . . . . . . Retrieved Matter . | . . . . . . . . Parts Self-Destructed . | . . . . . . . . Prevented . | . . . . . . . . Parts Restored . | . . . . . . . . Kills | -11 -10 -10 -9 -9 -9 -8 -8 ------- Run | Yrd Mat Min Mat Min Exi Min Mat Combat Hostiles Destroyed 11 | . . 3 5 3 . . . Melee 1 | . . . 1 . . . . Guns 3 | . . . . 3 . . . AOE 7 | . . 3 4 . . . . Classes Destroyed 6 | . . 1 4 . . . 1 Worker 1 | . . . . . . . 1 Hauler 1 | . . . 1 . . . . Recycler 1 | . . . 1 . . . . Swarmer 7 | . . . 4 3 . . . Grunt 1 | . . . 1 . . . . Assembled 3 | . . 3 . . . . . Best Kill Streak 4 | . . 3 4 3 . . 1 Combat Bots Only 4 | . . 3 4 3 . . . Max Kills in Single Turn 2 | . . 2 2 1 . . 1 Gunslinging . | . . . . . . . . Exploded 2 | . . 2 2 . . . . Melee 1 | . . . 1 . . . . Uniques/NPCs Destroyed . | . . . . . . . . Combat | -11 -10 -10 -9 -9 -9 -8 -8 -------- Run | Yrd Mat Min Mat Min Exi Min Mat Hostile Shots Fired 184 | . 8 17 47 14 . 8 90 Missed 88 | . 5 8 19 3 . 3 50 Hits 96 | . 3 9 28 11 . 5 40 Melee 2 | . . 1 . . . . 1 Projectile 94 | . 3 8 28 11 . 5 39 AOE 1 | . . . . . . . 1 Critical Strikes 4 | . . . 3 . . . 1 Damage Taken 1418 | . 20 224 316 87 . 39 732 Core 900 | . 13 48 182 22 . 32 603 Absorbed by Shields . | . . . . . . . . Core Remaining (%) 72 | 100 . 75 . . . 41 . Volleys Fired 27 | . 1 12 3 11 . . . Largest 1 | . 1 1 1 1 . . . Hottest 33 | . 20 30 33 20 . . . Shots Fired 27 | . 1 12 3 11 . . . Gun 12 | . 1 . . 11 . . . Cannon . | . . . . . . . . Launcher 15 | . . 12 3 . . . . Special . | . . . . . . . . Kinetic 12 | . 1 . . 11 . . . Thermal . | . . . . . . . . Explosive 15 | . . 12 3 . . . . Electromagnetic . | . . . . . . . . Robot Hit Streak 3 | . . . . 3 . . . Robot Miss Streak 3 | . 1 3 . 2 . . . Penetration Max . | . . . . . . . . Secondary Targets . | . . . . . . . . Shots Hit Robots 16 | . . . 8 7 . . 1 Core Hits 15 | . . 6 5 4 . . . Critical Kills . | . . . . . . . . Critical Parts Destroyed 1 | . . . 1 . . . . Critical Strikes 1 | . . . 1 . . . . Smash 1 | . . . 1 . . . . Melee Attacks 21 | . . . 15 . . . 6 Impact 18 | . . . 15 . . . 3 Slashing 3 | . . . . . . . 3 Piercing . | . . . . . . . . Sneak Attacks 5 | . . . 4 . . . 1 Combat Hostiles . | . . . . . . . . Follow-up Attacks . | . . . . . . . . Damage Inflicted 1025 | . . 154 730 52 . . 89 Guns 52 | . . . . 52 . . . Cannons . | . . . . . . . . Explosions 364 | . . 154 210 . . . . Melee 606 | . . . 520 . . . 86 Ramming 3 | . . . . . . . 3 Kinetic 52 | . . . . 52 . . . Thermal . | . . . . . . . . Explosive 364 | . . 154 210 . . . . Electromagnetic . | . . . . . . . . Impact 606 | . . . 520 . . . 86 Slashing . | . . . . . . . . Piercing . | . . . . . . . . Highest Corruption . | . . . . . . . . Average Corruption . | . . . . . . . . Corruption Purged . | . . . . . . . . Corruption Blocked . | . . . . . . . . Overload Shots . | . . . . . . . . Overflow Damage 305 | . . . 234 . . . 71 Projectiles . | . . . . . . . . Explosions 61 | . . . 61 . . . . Melee 244 | . . . 173 . . . 71 Knockbacks . | . . . . . . . . Impact . | . . . . . . . . Kinetic . | . . . . . . . . Secondary . | . . . . . . . . Self-Inflicted Damage 160 | . . 88 71 . . . 1 Shots 7 | . . 4 3 . . . . Rammed 1 | . . . . . . . 1 Targets Rammed 1 | . . . . . . . 1 Kicked . | . . . . . . . . Crushed . | . . . . . . . . Highest Temperature 5 | . . 5 . . . . . Average Temperature 5 | . . 5 . . . . . Received Heat Transfer 462 | . . 54 75 . . . 333 Siege Activations . | . . . . . . . . Martial Activations . | . . . . . . . . Shielding Activations . | . . . . . . . . Robots Disrupted . | . . . . . . . . Combat Hostiles . | . . . . . . . . Robots Corrupted 1 | . . . 1 . . . . Combat Hostiles . | . . . . . . . . Parts Fried 6 | . . . 4 . . . 2 Impact Corruptions 7 | . . . 5 . . . 2 Robots Melted . | . . . . . . . . Combat Hostiles . | . . . . . . . . Parts Melted . | . . . . . . . . Heat Transferred . | . . . . . . . . Parts Sabotaged . | . . . . . . . . Parts Stolen . | . . . . . . . . Parts Stripped . | . . . . . . . . Power Chain Reactions . | . . . . . . . . Alert | -11 -10 -10 -9 -9 -9 -8 -8 ------- Run | Yrd Mat Min Mat Min Exi Min Mat Maximum Alert Level 2 | . . . . . . . 2 Low Security (%) 90 | 100 100 100 100 100 . 100 59 Level 1 8 | . . . . . . . 38 Level 2 . | . . . . . . . 2 Level 3 . | . . . . . . . . Level 4 . | . . . . . . . . Level 5 . | . . . . . . . . High Security . | . . . . . . . . Max Security . | . . . . . . . . Peak Influence 468 | . 5 30 173 82 . . 468 Initial 62 | . . . 11 62 . . . Average 48 | . . 1 97 48 . . 146 Influence Increases 1036 | . 5 65 229 77 . . 660 Destroy 0b10 Robot/C 160 | . . . 100 60 . . . Destroy 0b10 Robot/NC 15 | . . . 10 . . . 5 Destroy Leader 32 | . . . 22 10 . . . Successful Hack 52 | . 5 . 5 7 . . 35 Select Force Hacks 60 | . . . . . . . 60 Disable Machine 45 | . . . 45 . . . . Destroy Structure 42 | . . 20 17 . . . 5 Partial Spotted 15 | . . . . . . . 15 Lose Combat Pursuer 615 | . . 45 30 . . . 540 Influence Decreases 568 | . 5 36 98 158 79 . 192 Entered New Map 195 | . . . 18 98 79 . . Time Decay 315 | . 5 28 70 60 . . 152 Lost Part 48 | . . 8 10 . . . 30 Lost Ally 10 | . . . . . . . 10 Squads Dispatched 8 | . . 1 2 . . . 5 Investigation 6 | . . 1 2 . . . 3 Extermination . | . . . . . . . . Reinforcement 2 | . . . . . . . 2 Assault . | . . . . . . . . Garrison . | . . . . . . . . Intercept . | . . . . . . . . Searches Triggered . | . . . . . . . . Construction Impeded . | . . . . . . . . Haulers Reinforced . | . . . . . . . . Active Scanning Responses . | . . . . . . . . Cargo Convoy Interrupts . | . . . . . . . . Stealth | -11 -10 -10 -9 -9 -9 -8 -8 --------- Run | Yrd Mat Min Mat Min Exi Min Mat Distress Signals 6 | . . 1 2 . . . 3 Communications Jammed . | . . . . . . . . Distress Signals . | . . . . . . . . Times Spotted 96 | . 8 14 18 3 . 3 50 Peak Tracking Total 16 | . 8 5 12 3 . 3 16 Tactical Retreats 13 | . . 3 1 . . . 9 Traps | -11 -10 -10 -9 -9 -9 -8 -8 ------- Run | Yrd Mat Min Mat Min Exi Min Mat Traps Triggered 1 | . . . 1 . . . . Indirectly . | . . . . . . . . Trap Hack Attempts . | . . . . . . . . Triggered . | . . . . . . . . Disarmed . | . . . . . . . . Reprogrammed . | . . . . . . . . Reused . | . . . . . . . . Traps Extracted . | . . . . . . . . Installed . | . . . . . . . . Triggered . | . . . . . . . . Machines | -11 -10 -10 -9 -9 -9 -8 -8 ---------- Run | Yrd Mat Min Mat Min Exi Min Mat Machines Disabled 3 | . . . 3 . . . . Max in Single Turn 1 | . . . 1 . . . . Machines Repaired . | . . . . . . . . Machines Dismantled . | . . . . . . . . Machines Sabotaged . | . . . . . . . . Overloaded Fab Kills . | . . . . . . . . Hacking | -11 -10 -10 -9 -9 -9 -8 -8 --------- Run | Yrd Mat Min Mat Min Exi Min Mat Machines Accessed 18 | . 2 1 4 2 1 . 8 Terminals 11 | . 2 . 3 1 . . 5 Fabricators . | . . . . . . . . Repair Stations . | . . . . . . . . Recycling Units 3 | . . . 1 . . . 2 Scanalyzers 1 | . . . . . . . 1 Garrison Access . | . . . . . . . . Total Hacks 52 | . 6 1 13 5 1 . 26 Successful 24 | . 2 1 4 4 1 . 12 Failed 28 | . 4 . 9 1 . . 14 Catastrophic 3 | . . . . . . . 3 Database Lockouts . | . . . . . . . . Manual 31 | . 5 . 6 3 1 . 16 Terminals 37 | . 6 . 9 4 . . 18 Fabricators . | . . . . . . . . Repair Stations . | . . . . . . . . Recycling Units 10 | . . . 4 . . . 6 Scanalyzers 2 | . . . . . . . 2 Garrison Access . | . . . . . . . . Terminal Hacks 14 | . 1 1 2 4 1 . 5 Record 1 | . . . . 1 . . . Robot Analysis 2 | . . . . 2 . . . Open Door 2 | . . 1 . 1 . . . Branch Access Points 1 | . . . . . . . 1 Terminal Index 1 | . . . 1 . . . . Locate Traps 4 | . 1 . 1 . . . 2 Hauler Manifests 2 | . . . . . . . 2 Proto ID Catalog 1 | . . . . . 1 . . Fabricator Hacks . | . . . . . . . . Repair Station Hacks . | . . . . . . . . Recycling Unit Hacks 4 | . . . 1 . . . 3 Retrieve Components 4 | . . . 1 . . . 3 Scanalyzer . | . . . . . . . . Garrison Access Hacks . | . . . . . . . . Unauthorized Hacks 6 | . 1 . 1 . . . 4 Terminals 3 | . 1 . . . . . 2 Assimilate 1 | . . . . . . . 1 Botnet 2 | . 1 . . . . . 1 Fabricators . | . . . . . . . . Repair Stations . | . . . . . . . . Recycling Units 3 | . . . 1 . . . 2 Reject 1 | . . . 1 . . . . Tunnel 2 | . . . . . . . 2 Scanalyzers . | . . . . . . . . Garrison Access . | . . . . . . . . Data Cores Recovered . | . . . . . . . . Used . | . . . . . . . . Hacking Detections 15 | . 2 . 4 1 . . 8 Full Trace Events 2 | . . . 1 . . . 1 Feedback Events . | . . . . . . . . Feedback Blocked . | . . . . . . . . Robot Schematics Acquired . | . . . . . . . . Robots Built . | . . . . . . . . Authchips . | . . . . . . . . Time . | . . . . . . . . Total Robot Build Rating . | . . . . . . . . Part Schematics Acquired . | . . . . . . . . Parts Built . | . . . . . . . . Authchips . | . . . . . . . . Time . | . . . . . . . . Total Part Build Rating . | . . . . . . . . Part Studies Acquired . | . . . . . . . . Parts Repaired . | . . . . . . . . Time . | . . . . . . . . Parts Recycled . | . . . . . . . . Recycled Matter . | . . . . . . . . Retrieved Matter . | . . . . . . . . Retrieved Components 5 | . . . 2 . . . 3 Parts Scanalyzed . | . . . . . . . . Part Schematics Acquired . | . . . . . . . . Parts Damaged . | . . . . . . . . Bothacking | -11 -10 -10 -9 -9 -9 -8 -8 ------------ Run | Yrd Mat Min Mat Min Exi Min Mat Used RIF Installer . | . . . . . . . . Robots Hacked . | . . . . . . . . Non-combat . | . . . . . . . . Combat . | . . . . . . . . Robot Hacks Applied . | . . . . . . . . Relay Couplers Released . | . . . . . . . . Fabnet Peak Effective % . | . . . . . . . . Robots Rewired . | . . . . . . . . Allies Hacked . | . . . . . . . . Hacks Repelled . | . . . . . . . . Allies | -11 -10 -10 -9 -9 -9 -8 -8 -------- Run | Yrd Mat Min Mat Min Exi Min Mat Total Allies 1 | . . . . . . . 1 Largest Group 1 | . . . . . . . 1 Highest-Rated Group 10 | . . . . . . . 10 Highest-Rated Ally 10 | . . . . . . . 10 Total Orders . | . . . . . . . . Ally Attacks . | . . . . . . . . Total Damage . | . . . . . . . . Kills . | . . . . . . . . Allies Corrupted . | . . . . . . . . Allies Melted . | . . . . . . . . Intel | -11 -10 -10 -9 -9 -9 -8 -8 ------- Run | Yrd Mat Min Mat Min Exi Min Mat Active Infowar (turns) 289 | . . . 154 135 . . . Optics 154 | . . . 154 . . . . Sensors 135 | . . . . 135 . . . Seismic 131 | . . . . 131 . . . Robot Analysis Total 2 | . . . . 2 . . . Derelict Logs Recovered 2 | . . 1 . 1 . . . Drone Launches . | . . . . . . . . Drone Recoveries . | . . . . . . . . Exploration | -11 -10 -10 -9 -9 -9 -8 -8 ------------- Run | Yrd Mat Min Mat Min Exi Min Mat Turns Passed 1623 | 21 59 772 154 138 110 19 350 Spaces Moved 1935 | 31 103 499 186 199 217 37 663 Core 1371 | 31 103 499 186 182 217 16 137 Treads . | . . . . . . . . Legs 1 | . . . . 1 . . . Wheels . | . . . . . . . . Hover 162 | . . . . . . . 162 Flight 401 | . . . . 16 . 21 364 Fastest Speed 37 | 50 50 50 50 37 50 37 37 Average Speed 48 | 50 50 50 50 50 50 42 45 Slowest Speed 200 | 50 50 50 150 200 50 50 60 Overloaded Moves . | . . . . . . . . Propulsion Burnouts . | . . . . . . . . Robots Hopped 8 | . . . . . . . 8 Potential Cave-ins . | . . . . . . . . Cave-ins Triggered . | . . . . . . . . Exploration Rate (%) 40 | 3 27 74 20 53 60 23 61 Regions Visited 7 Branch Regions 4 Pre-discovered Areas 3 | . . 1 . . . . 2 Known Exits Taken 1 | . . . 1 . . . . Unknown Exits Taken 6 | 1 1 1 . 1 1 1 . Scrap Searched 4 | . . 3 . 1 . . . Spaces Dug 26 | . . 18 3 . . . 5 Terrain Destroyed 95 | . . 74 16 . . . 5 Melee 6 | . . . 1 . . . 5 Projectile . | . . . . . . . . AOE 89 | . . 74 15 . . . . Terrain Rammed . | . . . . . . . . Walls Destroyed . | . . . . . . . . Machines Disabled . | . . . . . . . . Actions | -11 -10 -10 -9 -9 -9 -8 -8 --------- Run | Yrd Mat Min Mat Min Exi Min Mat Total 2546 | 35 109 1008 215 228 218 40 693 Wait 494 | . . 492 1 . . . 1 Move 1912 | 30 102 498 185 198 216 36 647 Hop 8 | . . . . . . . 8 Pick Up 20 | 5 2 3 3 1 1 . 5 Fast Attach 15 | . . . 3 6 . . 6 Attach 21 | . 3 3 3 3 . 2 7 Detach 15 | . 1 . 1 5 . 2 6 Swap . | . . . . . . . . Drop 12 | . . . 1 4 1 . 6 Fire 27 | . 1 12 3 11 . . . Melee 21 | . . . 15 . . . 6 Ram 1 | . . . . . . . 1 Kick . | . . . . . . . . Crush . | . . . . . . . . Escape Stasis . | . . . . . . . . Rewire . | . . . . . . . . Trap . | . . . . . . . . Miscellaneous . | . . . . . . . . Route ------- -11/Scrapyard -10/Materials -10/Mines -9/Materials -9/Mines -9/Exiles -8/Mines -8/Materials (discovered 3 exits: [*Fac x2] / *Sto) History --------- Turn | Location | Event 5 | -11/Scrapyard | Discovered new exit (range 15) 22 | -11/Scrapyard | Entered Materials 76 | -10/Materials | Discovered new exit (range 6) 81 | -10/Materials | Released all parts (2) 81 | -10/Materials | Entered Mines 82 | -10/Mines | Assembled infested the area 87 | -10/Mines | Assisted by a Guerilla fighting off Assembled 96 | -10/Mines | Met a Derelict shopkeep closing up shop 311 | -10/Mines | Build established: Mutant 741 | -10/Mines | Received a Rocket Launcher from a helpful Derelict 830 | -10/Mines | Learned location of Storage (-8) 831 | -10/Mines | Discovered new exit (range 14) 853 | -10/Mines | Released all parts (2) 853 | -10/Mines | Entered Materials 853 | -9/Materials | Evolved 2 slots: Propulsion x1, Utility x1 1003 | -9/Materials | Discovered new exit (range 6) 1005 | -9/Materials | Identified exit to Mines 1007 | -9/Materials | Released all parts (4) 1007 | -9/Materials | Entered Mines 1031 | -9/Mines | Found the Drone Emporium 1033 | -9/Mines | Found Prototype Device 1033 | -9/Mines | Identified Thief Drone Bay 1041 | -9/Mines | Learned Materials interactive machine intel 1119 | -9/Mines | Core integrity fell below 50% 1140 | -9/Mines | Deemed a non-threat by the Exiles lab entrance 1140 | -9/Mines | Discovered new exit (range 5) 1145 | -9/Mines | Released all parts (3) 1145 | -9/Mines | Entered Exiles 1158 | -9/Exiles | Met 8R-AWN 1167 | -9/Exiles | Met EX-HEX 1180 | -9/Exiles | Met EX-BIN 1186 | -9/Exiles | Aligned with FarCom system 1186 | -9/Exiles | Given EX-Vault access code 1198 | -9/Exiles | Opened EX-Vault 1201 | -9/Exiles | Found Deploy-a-Sentry 1212 | -9/Exiles | Warned to stay clear of 0b10 Research branches 1221 | -9/Exiles | Exiles lab attacked by MAIN.C 1251 | -9/Exiles | Discovered new exit (range 10) 1255 | -9/Exiles | Left Exiles lab with Deploy-a-Sentry 1255 | -9/Exiles | Entered Mines 1269 | -8/Mines | Discovered new exit (range 9) 1274 | -8/Mines | Entered Materials 1274 | -8/Materials | Evolved 2 slots: Propulsion x1, Utility x1 1275 | -8/Materials | Loaded intel: 19 interactive machine locations 1446 | -8/Materials | Identified exit to Storage 1450 | -8/Materials | Discovered new exit (range 3) 1516 | -8/Materials | Discovered new exit (range 16) 1566 | -8/Materials | Core integrity fell below 50% 1619 | -8/Materials | Core integrity fell below 20% 1624 | -8/Materials | Destroyed by H-61 Shepherd with Heavy Assault Cannon Last Messages --------------- Retrieving manifest data... Found 6 haulers: A-02 Transporter 6x Aerolev Unit A-02 Transporter 3x Thermal Generator 2x Lrg. Storage Unit A-02 Transporter 2x Nuclear Core 3x Imp. Light Cannon 1x Reaction Control System A-02 Transporter 5x Hvy. EM Shotgun (1 escort) A-02 Transporter 4x Cld. Ion Engine 2x Hvy. Ion Engine A-02 Transporter 3x Imp. Assault Rifle 01618_ Knocked back. Map ----- +----------------------------------------------------+ | ???????????????????????????######?# #? | | ??????????????????????????????????# # "" | | ??????????????????????????????????# """ # """ | | ??????????????????????????????????# """ / """ | | ??????????????????????????????????# "" # """ | | ??????????????????????????????????# # "" | | ?????????????????????????????????## #? | | ?????????????????????????????????# ]]#? | | ?????????????????????????????????# ]]###### | | ?????????????????????????????????# # | | ??????????T?????Y????????????????# # """ | | ?????????????????????????????????# # """ | | ?????????????g????????????????######/#### + """ | | ?????????????g????????????????# # # | | ?????????????????""???????????# # # | | ?????????????????""???????????# """ """ # ###### | | ?????"???????????T"???????????# """ """ # | | ?????T???????????""???????????# """ " " g | | ?????"???????????""???????????# #g | | ???????????? ????????#######?## # #### | | ???????????? ###+### [ #?#" # ##?# | | ?????????????? #?#"########## T#?# | | ???????????????? > #?##?????????# g ##?# | | ??????????????????? gHY #????????????#g #??# | | ?????"???????????????# g #????????????# g #??# | | ?????T????????????????#g @;##########??##b #### | | ?????"????o????????T?##o% # #??# g =## | | ?????????????????????#T # #??# gg ## | | ?????????????????????## + #??# " ## " | | ??????????????????????# # #??# ## | | ??????????????????????# ###########??# g ## | | ??????????????????????# #?#########??###/####### | | ??????????????????????# #? #??# #??? | | ??????????????????????# c # [ #??# """" #??? | | ??????????????????????# # #??# """" #??? | | ??????????????????????+ + """ ""?????# """" #??? | | ??????????????????????# # """ ""?????# #??? | | ??????????????????????# # """ ""?????# #??? | | ??????????????????????# #? ?????######/#??? | | ??????????????????????# #? ??????????# #??? | | ??????????????????????# % #################?# #??? | | ??????????????????????# # # """ #?# #?## | | ??????????????????????+ + # """ #?# #?# | | ??????????????????????# # "T" [# """ #?# #?# | | ??????????????????????# ######### ^ #?# #?# | | ?????????????????????## ##????### #?# #?# | | ?????????????????????# ###### # ###### ### | | ?????????????????????# %% # | | ?????????????????????# % + | | ?????????????????????# """ # | +----------------------------------------------------+ Best States ------------- Heat Dissipation 31 Energy Generation 14 Energy Capacity 140 Matter Stores 300 Matter Capacity 300 Sight Range 20 Robot Scan Range 14 Terrain Scan Density 10 Armor Coverage 225 Evasion (%) 70 Recoil Reduction 2 Salvage Targeting 1 Item Schematics ----------------- None Robot Schematics ------------------ None Fabricated ------------ Nothing Repaired ---------- Nothing Studied --------- None Alien Tech Used ----------------- None Achievements -------------- Physics Hates This One Trick Challenges ------------ None Game ------ Seed FrostBehemothThermoblaster Manual? 0 Play Time 00:27:29 Cumulative 286.6 hours Start 2026.01.03 @ 01:48:28 End 2026.01.03 @ 02:11:12 Sessions 1 Manual Loads 0 Difficulty Rogue Special Mode None Game No. 168 Rogue 164 Adventurer 4 Explorer 0 Win Type - Total 9 Types 7/0/2/0/0/0/0/0/0/0 Lore% 87 Gallery% 75 Achievement% 52 Wizard Run 0 Options --------- Layout 2 ASCII 0 Keyboard 1 Movement Vi Keybinds 1 Fullscreen 2 Font 24/Smallcaps Map View 50x44 Zoom Use 0% Tactical HUD 1 Map Filters NONE Filters NONE Steam 1 RUN: 581c087f-90c3-412f-b0b1-732721adc8ac